fUST/lending_fUST_20251011
["ID","MTS","AMOUNT","RATE_DAILY","PERIOD"]
[390861596,1760181058868,-353.66145379,0.00024657,9]
[390861597,1760181058878,-1074.33,0.00024657,9]
[390861598,1760181058887,-500.0,0.00024657,9]
[390861599,1760181058897,-1074.33,0.00024657,9]
[390861600,1760181058906,-500.0,0.00024657,9]
[390861601,1760181058915,-1074.33,0.00024657,9]
[390861602,1760181058930,-500.0,0.00024657,9]
[390861603,1760181058939,-1074.33,0.00024657,9]
[390861604,1760181058949,-500.0,0.00024657,9]
[390861605,1760181058958,-1074.33,0.00024657,9]
[390861606,1760181058967,-500.0,0.00024657,9]
[390861607,1760181058976,-500.0,0.00024657,9]
[390861608,1760181058986,-1074.33,0.00024657,9]
[390861609,1760181058995,-500.0,0.00024657,9]
[390861610,1760181059005,-500.0,0.00024657,9]
[390861611,1760181059014,-1074.41703167,0.00024657,9]
[390861612,1760181059023,-500.0,0.00024657,9]
[390861613,1760181059032,-500.0,0.00024657,9]
[390861614,1760181059042,-500.0,0.00024657,9]
[390861615,1760181059051,-500.0,0.00024657,9]
[390861616,1760181059060,-500.0,0.00024657,9]
[390861617,1760181059071,-1106.76,0.00024657,9]
[390861618,1760181059080,-500.0,0.00024657,9]
[390861619,1760181059089,-500.0,0.00024657,9]
[390861620,1760181059098,-1106.76,0.00024657,9]
[390861621,1760181059108,-209.01,0.00024657,9]
[390861622,1760181059117,-500.0,0.00024657,9]
[390861623,1760181059126,-1106.76,0.00024657,9]
[390861624,1760181059135,-500.0,0.00024657,9]
[390861625,1760181059144,-1106.76,0.00024657,9]
[390861626,1760181059154,-500.0,0.00024657,9]
[390861627,1760181059163,-1106.76,0.00024657,9]
[390861628,1760181059172,-500.0,0.00024657,9]
[390861629,1760181059181,-1106.76,0.00024657,9]
[390861630,1760181059190,-500.0,0.00024657,9]
[390861631,1760181059200,-1106.76,0.00024657,9]
[390861632,1760181059208,-249.21833195,0.00024657,9]
[390861633,1760181059222,-1106.76,0.00024657,9]
[390861634,1760181059231,-1106.76,0.00024657,9]
[390861635,1760181059241,-500.0,0.00024657,9]
[390861636,1760181059250,-1106.76,0.00024657,9]
[390861637,1760181059260,-500.0,0.00024657,9]
[390861638,1760181059269,-1106.76,0.00024657,9]
[390861639,1760181059278,-1106.76,0.00024657,9]
[390861640,1760181059287,-1106.76,0.00024657,9]
[390861641,1760181059296,-500.0,0.00024657,9]
[390861642,1760181059306,-500.0,0.00024657,9]
[390861643,1760181059315,-1106.76,0.00024657,9]
[390861644,1760181059324,-500.0,0.00024657,9]
[390861645,1760181059333,-500.0,0.00024657,9]
[390861646,1760181059342,-1106.76,0.00024657,9]
[390861647,1760181059351,-1106.76,0.00024657,9]
[390861648,1760181059361,-1106.76,0.00024657,9]
[390861649,1760181059370,-500.0,0.00024657,9]
[390861650,1760181059379,-1106.76,0.00024657,9]
[390861651,1760181059389,-500.0,0.00024657,9]
[390861652,1760181059398,-1106.76,0.00024657,9]
[390861653,1760181059407,-500.0,0.00024657,9]
[390861654,1760181059416,-1106.76,0.00024657,9]
[390861655,1760181059424,-1106.76,0.00024657,9]
[390861656,1760181059433,-1106.76,0.00024657,9]
[390861657,1760181059442,-500.0,0.00024657,9]
[390861658,1760181059451,-1106.76,0.00024657,9]
[390861659,1760181059460,-488.54762227,0.00024657,9]
[390861660,1760181059469,-1106.89889657,0.00024657,9]
[390861661,1760181059478,-171.462379,0.00024657,10]
[390861662,1760181059487,-500.0,0.00024657,9]
[390861663,1760181059495,-500.0,0.00024657,9]
[390861664,1760181059505,-4583.25,0.00024657,9]
[390861665,1760181059514,-500.0,0.00024657,9]
[390861666,1760181059527,-4583.25,0.00024657,9]
[390861667,1760181059536,-500.0,0.00024657,9]
[390861668,1760181059545,-4583.25,0.00024657,9]
[390861669,1760181059554,-461.95671112,0.00024657,9]
[390861670,1760181059565,-4583.25,0.00024657,9]
[390861671,1760181059575,-4583.25,0.00024657,9]
[390861672,1760181059584,-4583.25,0.00024657,9]
[390861673,1760181059593,-4583.25,0.00024657,9]
[390861674,1760181059603,-4583.25,0.00024657,9]
[390861675,1760181059614,-4583.25,0.00024657,9]
[390861676,1760181059623,-4583.25,0.00024657,9]
[390861677,1760181059632,-4583.25,0.00024657,9]
[390861678,1760181059641,-500.0,0.00024657,9]
[390861679,1760181059650,-4583.25,0.00024657,9]
[390861680,1760181059659,-500.0,0.00024657,9]
[390861681,1760181059668,-4583.25,0.00024657,9]
[390861682,1760181059677,-500.0,0.00024657,9]
[390861683,1760181059688,-4583.25,0.00024657,9]
[390861684,1760181059701,-500.0,0.00024657,9]
[390861685,1760181059711,-500.0,0.00024657,9]
[390861686,1760181059720,-4583.25,0.00024657,9]
[390861687,1760181059729,-4583.25,0.00024657,9]
[390861688,1760181059739,-4583.25,0.00024657,9]
[390861689,1760181059748,-4583.25,0.00024657,9]
[390861690,1760181059758,-684.24,0.00024657,9]
[390861691,1760181059767,-4583.25,0.00024657,9]
[390861692,1760181059776,-684.24,0.00024657,9]
[390861693,1760181059786,-4583.25,0.00024657,9]
[390861694,1760181059795,-755.59,0.00024657,9]
[390861695,1760181059804,-4583.25,0.00024657,9]
[390861696,1760181059813,-684.24,0.00024657,9]
[390861697,1760181059823,-755.59,0.00024657,9]
[390861698,1760181059832,-500.0,0.00024657,9]
[390861699,1760181059842,-4583.25,0.00024657,9]
[390861700,1760181059851,-684.24,0.00024657,9]
[390861701,1760181059860,-755.59,0.00024657,9]
[390861702,1760181059869,-500.0,0.00024657,9]
[390861703,1760181059878,-684.24,0.00024657,9]
[390861704,1760181059888,-755.59,0.00024657,9]
[390861705,1760181059897,-4583.25,0.00024657,9]
[390861706,1760181059906,-500.0,0.00024657,9]
[390861707,1760181059915,-684.24,0.00024657,9]
[390861708,1760181059923,-755.59,0.00024657,9]
[390861709,1760181059933,-4583.35585299,0.00024657,9]
[390861710,1760181059942,-500.0,0.00024657,9]
[390861711,1760181059951,-684.24,0.00024657,9]
[390861712,1760181059960,-755.59,0.00024657,9]
[390861713,1760181059969,-755.59,0.00024657,9]
[390861714,1760181059979,-684.24,0.00024657,9]
[390861715,1760181059988,-500.0,0.00024657,9]
[390861716,1760181059997,-755.59,0.00024657,9]
[390861717,1760181060006,-453.74022858,0.00024657,9]
[390861718,1760181060016,-684.24,0.00024657,9]
[390861719,1760181060025,-5420.62,0.00024657,9]
[390861720,1760181060036,-755.59,0.00024657,9]
[390861721,1760181060046,-5420.62,0.00024657,9]
[390861722,1760181060056,-755.59,0.00024657,9]
[390861723,1760181060067,-684.24,0.00024657,9]
[390861724,1760181060076,-5420.62,0.00024657,9]
[390861725,1760181060086,-755.59,0.00024657,9]
[390861726,1760181060096,-684.24,0.00024657,9]
[390861727,1760181060106,-5420.62,0.00024657,9]
[390861728,1760181060115,-755.59,0.00024657,9]
[390861729,1760181060125,-684.24,0.00024657,9]
[390861730,1760181060134,-5420.62,0.00024657,9]
[390861731,1760181060143,-755.59,0.00024657,9]
[390861732,1760181060153,-500.0,0.00024657,9]
[390861733,1760181060162,-684.24,0.00024657,9]
[390861734,1760181060172,-1085.9,0.00024657,9]
[390861735,1760181060181,-5420.62,0.00024657,9]
[390861736,1760181060190,-755.59,0.00024657,9]
[390861737,1760181060199,-684.24,0.00024657,9]
[390861738,1760181060208,-1085.9,0.00024657,9]
[390861739,1760181060217,-5420.62,0.00024657,9]
[390861740,1760181060226,-755.59,0.00024657,9]
[390861741,1760181060235,-684.24,0.00024657,9]
[390861742,1760181060245,-1085.9,0.00024657,9]
[390861743,1760181060255,-5420.62,0.00024657,9]
[390861744,1760181060264,-755.59,0.00024657,9]
[390861745,1760181060274,-684.24,0.00024657,9]
[390861746,1760181060283,-1085.9,0.00024657,9]
[390861747,1760181060292,-5420.62,0.00024657,9]
[390861748,1760181060302,-755.59,0.00024657,9]
[390861749,1760181060312,-473.8088769,0.00024657,9]
[390861750,1760181060321,-684.24,0.00024657,9]
[390861751,1760181060331,-1085.9,0.00024657,9]
[390861752,1760181060340,-5420.62,0.00024657,9]
[390861753,1760181060349,-755.59,0.00024657,9]
[390861754,1760181060358,-684.24,0.00024657,9]
[390861755,1760181060367,-1085.9,0.00024657,9]
[390861756,1760181060376,-5420.62,0.00024657,9]
[390861757,1760181060385,-755.59,0.00024657,9]
[390861758,1760181060394,-300.0,0.00024658,14]
[390861759,1760181060404,-300.0,0.00024658,14]
[390861760,1760181060413,-300.0,0.00024658,14]
[390861761,1760181060422,-300.0,0.00024658,14]
[390861762,1760181060431,-300.0,0.00024658,14]
[390861763,1760181060441,-300.0,0.00024658,14]
[390861764,1760181060450,-500.0,0.00024673,2]
[390861765,1760181060460,-500.2555165,0.00024673,2]
[390861766,1760181060469,-500.0,0.00024673,2]
[390861767,1760181060478,-500.0,0.00024673,2]
[390861768,1760181060487,-500.0,0.00024673,2]
[390861769,1760181060496,-500.0,0.00024673,2]
[390861770,1760181060505,-500.0,0.00024673,2]
[390861771,1760181060514,-500.0,0.00024673,2]
[390861772,1760181060528,-500.0,0.00024673,2]
[390861773,1760181060537,-200.31661724,0.00024673,2]
[390861774,1760181060547,-341.6340202,0.00024673,2]
[390861775,1760181060556,-500.0,0.00024673,2]
[390861776,1760181060566,-500.0,0.00024673,2]
[390861777,1760181060576,-500.0,0.00024673,2]
[390861778,1760181060586,-500.0,0.00024673,2]
[390861779,1760181060596,-440.7161878,0.00024673,2]
[390861780,1760181060605,-500.78946217,0.00024673,2]
[390861781,1760181060614,-500.0,0.00024673,2]
[390861782,1760181060624,-500.0,0.00024673,2]
[390861783,1760181060634,-507.21746052,0.00024673,2]
[390861784,1760181060644,-500.0,0.00024673,2]
[390861785,1760181060653,-500.0,0.00024673,2]
[390861786,1760181060662,-500.0,0.00024673,2]
[390861787,1760181060671,-500.0,0.00024673,2]
[390861788,1760181060680,-500.0,0.00024673,2]
[390861789,1760181060689,-300.0,0.00024693,20]
[390861790,1760181060698,-300.0,0.00024693,20]
[390861791,1760181060707,-300.0,0.00024693,20]
[390861792,1760181060716,-300.0,0.00024693,20]
[390861793,1760181060726,-300.0,0.00024693,20]
[390861794,1760181060735,-300.0,0.00024693,20]
[390861795,1760181060745,-300.0,0.00024693,20]
[390861796,1760181060755,-300.0,0.00024693,20]
[390861797,1760181060764,-300.0,0.00024693,20]
[390861798,1760181060773,-300.0,0.00024693,20]
[390861799,1760181060783,-300.0,0.00024693,20]
[390861800,1760181060792,-300.0,0.00024693,20]
[390861801,1760181060801,-300.0,0.00024693,20]
[390861802,1760181060811,-300.0,0.00024693,20]
[390861803,1760181060822,-300.0,0.00024693,20]
[390861804,1760181060831,-500.0,0.00024773,2]
[390861805,1760181060841,-380.52601766,0.00024773,2]
[390861806,1760181060849,-193.86918311,0.000248,2]
[390861807,1760181060859,-228478.814364,0.000248,2]
[390861808,1760181060868,-2609.37557469,0.00024883,2]
[390861809,1760181060877,-151.51440632,0.00024885,2]
[390861810,1760181060886,-500.0,0.00024899,9]
[390861811,1760181060895,-500.0,0.00024899,9]
[390861812,1760181060904,-500.0,0.00024899,9]
[390861813,1760181060913,-1201.13,0.00024899,9]
[390861814,1760181060922,-1201.13,0.00024899,9]
[390861815,1760181060931,-500.0,0.00024899,9]
[390861816,1760181060941,-500.0,0.00024899,9]
[390861817,1760181060949,-541.58,0.00024899,9]
[390861818,1760181060958,-541.58,0.00024899,9]
[390861819,1760181060968,-1332.62,0.00024899,9]
[390861820,1760181060977,-1332.62,0.00024899,9]
[390861821,1760181060986,-2990.79,0.00024899,9]
[390861822,1760181060995,-2990.79,0.00024899,9]
[390861823,1760181061004,-500.0,0.00024899,9]
[390861824,1760181061013,-500.0,0.00024899,9]
[390861825,1760181061022,-661.19,0.00024899,9]
[390861826,1760181061031,-661.19,0.00024899,9]
[390861827,1760181061041,-2335.06,0.00024899,9]
[390861828,1760181061050,-2335.06,0.00024899,9]
[390861829,1760181061060,-500.0,0.00024899,9]
[390861830,1760181061072,-500.0,0.00024899,9]
[390861831,1760181061081,-625868.610146,0.000249,2]
[390861832,1760181061089,-151.0,0.000249,7]
[390861833,1760181061098,-151.0,0.000249,7]
[390861834,1760181061107,-152.240291,0.000249,7]
[390861835,1760181061116,-151.0,0.000249,7]
[390861836,1760181061126,-151.0,0.000249,7]
[390861837,1760181061136,-151.0,0.000249,7]
[390861838,1760181061145,-151.0,0.000249,7]
[390861839,1760181061154,-151.0,0.000249,7]
[390861840,1760181061163,-641.462519,0.000249,7]
[390861841,1760181061172,-641.462519,0.000249,7]
[390861842,1760181061181,-153.341078,0.000249,7]
[390861843,1760181061190,-151.0,0.000249,7]
[390861844,1760181061307,-641.462519,0.000249,7]
[390861845,1760181061317,-641.462519,0.000249,7]
[390861846,1760181061327,-151.0,0.000249,7]
[390861847,1760181061337,-274.599595,0.000249,7]
[390861848,1760181061346,-291.894443,0.000249,2]
[390861849,1760181061356,-500.0,0.00024931,9]
[390861850,1760181061365,-500.0,0.00024931,5]
[390861851,1760181061374,-500.0,0.00024931,5]
[390861852,1760181061383,-177.58955875,0.00024945,2]
[390861853,1760181061392,-600.0,0.00025045,20]
[390861854,1760181061401,-193.86918311,0.000251,2]
[390861855,1760181061411,-151.0,0.0002515,2]
[390861856,1760181061420,-151.0,0.0002515,2]
[390861857,1760181061429,-151.0,0.0002515,2]
[390861858,1760181061438,-151.0,0.0002515,2]
[390861859,1760181061448,-500.0,0.0002515,2]
[390861860,1760181061458,-151.0,0.0002515,2]
[390861861,1760181061467,-151.0,0.0002515,2]
[390861862,1760181061476,-151.0,0.0002515,2]
[390861863,1760181061485,-2507.42801263,0.00025154,2]
[390861864,1760181061495,-384.0,0.000252,2]
[390861865,1760181061504,-384.0,0.000252,2]
[390861866,1760181061513,-384.0,0.000252,2]
[390861867,1760181061525,-384.0,0.000252,2]
[390861868,1760181061534,-384.0,0.000252,2]
[390861869,1760181061544,-384.0,0.000252,2]
[390861870,1760181061553,-384.0,0.000252,2]
[390861871,1760181061563,-193.82,0.000252,2]
[390861872,1760181061573,-151.0,0.00025205,2]
[390861873,1760181061582,-151.0,0.00025205,2]
[390861874,1760181061591,-151.0,0.00025205,2]
[390861875,1760181061602,-500.0,0.00025205,2]
[390861876,1760181061611,-151.0,0.00025205,2]
[390861877,1760181061621,-151.0,0.00025205,2]
[390861878,1760181061630,-151.0,0.00025205,2]
[390861879,1760181061639,-357.47083217,0.00025205,9]
[390861880,1760181061648,-500.0,0.00025205,5]
[390861881,1760181061657,-500.0,0.00025205,5]
[390861882,1760181061666,-1000.76866199,0.00025221,2]
[390861883,1760181061676,-570.81427335,0.00025221,2]
[390861884,1760181061685,-156.86003574,0.00025221,2]
[390861885,1760181061694,-1000.0,0.00025221,2]
[390861886,1760181061703,-1000.0,0.00025221,2]
[390861887,1760181061713,-604.48932129,0.00025221,2]
[390861888,1760181061723,-1000.0,0.00025221,2]
[390861889,1760181061733,-1000.0,0.00025221,2]
[390861890,1760181061742,-1000.0,0.00025221,2]
[390861891,1760181061752,-203.25041916,0.00025221,2]
[390861892,1760181061762,-500.0,0.00025221,2]
[390861893,1760181061771,-1000.0,0.00025221,2]
[390861894,1760181061781,-1000.0,0.00025221,2]
[390861895,1760181061790,-1000.0,0.00025221,2]
[390861896,1760181061799,-504.1325774,0.00025221,2]
[390861897,1760181061809,-151.0,0.0002526,2]
[390861898,1760181061821,-454.87937848,0.0002526,2]
[390861899,1760181061831,-198.0,0.0002526,2]
[390861900,1760181061840,-151.0,0.0002526,2]
[390861901,1760181061849,-151.0,0.0002526,2]
[390861902,1760181061859,-193.86918311,0.000253,2]
[390861903,1760181061869,-245.0,0.00025314,2]
[390861904,1760181061878,-245.0,0.00025314,2]
[390861905,1760181061887,-500.0,0.00025375,2]
[390861906,1760181061896,-500.0,0.00025479,5]
[390861907,1760181061905,-500.0,0.00025479,5]
[390861908,1760181061915,-193.86918311,0.000256,2]
[390861909,1760181061924,-168.0,0.00025631,7]
[390861910,1760181061934,-4038.6293346,0.00025692,2]
[390861911,1760181061943,-500.0,0.00025729,2]
[390861912,1760181061952,-18603.8837,0.00025729,2]
[390861913,1760181061961,-500.0,0.00025729,2]
[390861914,1760181061970,-151.0,0.00025729,2]
[390861915,1760181061980,-500.0,0.00025729,2]
[390861916,1760181061989,-500.0,0.00025729,2]
[390861917,1760181061998,-151.0,0.00025729,2]
[390861918,1760181062007,-500.0,0.00025729,2]
[390861919,1760181062016,-500.0,0.00025729,2]
[390861920,1760181062025,-151.0,0.00025729,2]
[390861921,1760181062034,-500.0,0.00025729,2]
[390861922,1760181062043,-500.0,0.00025729,2]
[390861923,1760181062052,-151.0,0.00025729,2]
[390861924,1760181062061,-291.6725299,0.00025729,2]
[390861925,1760181062071,-504.12458136,0.00025729,2]
[390861926,1760181062080,-151.0,0.00025729,2]
[390861927,1760181062090,-151.0,0.00025729,2]
[390861928,1760181062099,-151.0,0.00025729,2]
[390861929,1760181062109,-151.0,0.00025729,2]
[390861930,1760181062120,-151.0,0.00025729,2]
[390861931,1760181062130,-151.0,0.00025729,2]
[390861932,1760181062139,-255.4525165,0.00025729,2]
[390861933,1760181062148,-250.0,0.00025729,2]
[390861934,1760181062157,-250.0,0.00025729,2]
[390861935,1760181062167,-250.0,0.00025729,2]
[390861936,1760181062177,-151.0,0.00025729,2]
[390861937,1760181062185,-250.0,0.00025729,2]
[390861938,1760181062195,-250.0,0.00025729,2]
[390861939,1760181062204,-151.0,0.00025729,2]
[390861940,1760181062215,-250.0,0.00025729,2]
[390861941,1760181062224,-151.0,0.00025729,2]
[390861942,1760181062233,-250.0,0.00025729,2]
[390861943,1760181062243,-151.0,0.00025729,2]
[390861944,1760181062252,-250.0,0.00025729,2]
[390861945,1760181062261,-202.08639383,0.00025729,2]
[390861946,1760181062271,-250.0,0.00025729,2]
[390861947,1760181062280,-250.0,0.00025729,2]
[390861948,1760181062289,-250.0,0.00025729,2]
[390861949,1760181062299,-250.0,0.00025729,2]
[390861950,1760181062308,-250.0,0.00025729,2]
[390861951,1760181062317,-250.0,0.00025729,2]
[390861952,1760181062329,-250.0,0.00025729,2]
[390861953,1760181062338,-250.0,0.00025729,2]
[390861954,1760181062347,-250.0,0.00025729,2]
[390861955,1760181062356,-250.0,0.00025729,2]
[390861956,1760181062365,-250.0,0.00025729,2]
[390861957,1760181062373,-250.0,0.00025729,2]
[390861958,1760181062382,-250.0,0.00025729,2]
[390861959,1760181062392,-279.66141207,0.00025729,2]
[390861960,1760181062401,-250.0,0.00025729,2]
[390861961,1760181062410,-162.86771405,0.00025729,2]
[390861962,1760181062418,-500.0,0.00025753,5]
[390861963,1760181062427,-500.0,0.00025768,2]
[390861964,1760181062436,-510.99151939,0.00025768,2]
[390861965,1760181062445,-1500.0,0.00025768,2]
[390861966,1760181062454,-1500.0,0.00025768,2]
[390861967,1760181062464,-500.0,0.00025768,2]
[390861968,1760181062473,-514.57367624,0.00025768,2]
[390861969,1760181062482,-1500.0,0.00025768,2]
[390861970,1760181062491,-505.09056079,0.00025768,2]
[390861971,1760181062500,-193.86918311,0.000258,2]
[390861972,1760181062509,-168.0,0.00025811,2]
[390861973,1760181062520,-168.0,0.00025867,2]
[390861974,1760181062534,-959.91776811,0.00025896,2]
[390861975,1760181062543,-1431.48,0.00025916,3]
[390861976,1760181062553,-715.74,0.00025916,3]
[390861977,1760181062563,-573.42,0.00025916,3]
[390861978,1760181062575,-1000.0,0.00025923,2]
[390861979,1760181062584,-1000.0,0.00025925,2]
[390861980,1760181062593,-168.0,0.00025958,2]
[390861981,1760181062604,-1621.08,0.00025989,2]
[390861982,1760181062613,-1201.13,0.00026026,9]
[390861983,1760181062622,-500.0,0.00026026,9]
[390861984,1760181062632,-541.58,0.00026026,9]
[390861985,1760181062642,-1332.62,0.00026026,9]
[390861986,1760181062651,-2990.79,0.00026026,9]
[390861987,1760181062660,-500.0,0.00026026,9]
[390861988,1760181062670,-661.19,0.00026026,9]
[390861989,1760181062680,-2335.06,0.00026026,9]
[390861990,1760181062690,-500.0,0.00026026,9]
[390861991,1760181062700,-500.0,0.00026027,5]
[390861992,1760181062709,-11604.29,0.00026027,2]
[390861993,1760181062719,-152.19818,0.00026048,9]
[390861994,1760181062728,-154.818614,0.00026048,9]
[390861995,1760181062737,-152.447222,0.00026048,9]
[390861996,1760181062746,-154.839833,0.00026048,9]
[390861997,1760181062755,-19292.2273969,0.00026277,2]
[390861998,1760181062765,-500.0,0.00026301,5]
[390861999,1760181062774,-2000.0,0.00026316,2]
[390862000,1760181062783,-162.54991404,0.00026316,2]
[390862001,1760181062792,-1500.0,0.00026316,2]
[390862002,1760181062801,-168.0,0.00026393,2]
[390862003,1760181062811,-342.0,0.0002642,2]
[390862004,1760181062823,-168.0,0.0002643,2]
[390862005,1760181062832,-168.0,0.00026469,2]
[390862006,1760181062842,-1613.24865582,0.00026471,2]
[390862007,1760181062851,-168.0,0.00026542,2]
[390862008,1760181062860,-168.0,0.0002657,2]
[390862009,1760181062869,-500.0,0.00026575,5]
[390862010,1760181062878,-168.0,0.00026606,2]
[390862011,1760181062888,-890.0,0.00026613,2]
[390862012,1760181062898,-420.0,0.00026613,2]
[390862013,1760181062907,-168.0,0.00026666,2]
[390862014,1760181062917,-168.0,0.00026757,2]
[390862015,1760181062926,-5636.0713154,0.00026766,2]
[390862016,1760181062935,-7172.60569824,0.00026766,2]
[390862017,1760181062943,-168.0,0.00026807,2]
[390862018,1760181062952,-20006.03981059,0.00026825,2]
[390862019,1760181062962,-500.0,0.00026849,5]
[390862020,1760181062972,-500.0,0.00026849,10]
[390862021,1760181062982,-152.816439,0.00026849,10]
[390862022,1760181062990,-2500.0,0.00026864,2]
[390862023,1760181063000,-500.0,0.00027037,9]
[390862024,1760181063008,-500.0,0.00027037,9]
[390862025,1760181063018,-1201.13,0.00027037,9]
[390862026,1760181063028,-1201.13,0.00027037,9]
[390862027,1760181063037,-500.0,0.00027037,9]
[390862028,1760181063046,-500.0,0.00027037,9]
[390862029,1760181063056,-541.58,0.00027037,9]
[390862030,1760181063066,-541.58,0.00027037,9]
[390862031,1760181063077,-1332.62,0.00027037,9]
[390862032,1760181063087,-1332.62,0.00027037,9]
[390862033,1760181063097,-2990.79,0.00027037,9]
[390862034,1760181063107,-2990.79,0.00027037,9]
[390862035,1760181063116,-500.0,0.00027037,9]
[390862036,1760181063125,-500.0,0.00027037,9]
[390862037,1760181063134,-661.19,0.00027037,9]
[390862038,1760181063143,-661.19,0.00027037,9]
[390862039,1760181063153,-2335.06,0.00027037,9]
[390862040,1760181063163,-2335.06,0.00027037,9]
[390862041,1760181063172,-500.0,0.00027037,9]
[390862042,1760181063182,-500.0,0.00027037,9]
[390862043,1760181063191,-500.0,0.00027046,9]
[390862044,1760181063200,-563.75,0.00027046,9]
[390862045,1760181063209,-1201.13,0.00027046,9]
[390862046,1760181063218,-500.0,0.00027046,9]
[390862047,1760181063227,-541.58,0.00027046,9]
[390862048,1760181063236,-1332.62,0.00027046,9]
[390862049,1760181063246,-2990.79,0.00027046,9]
[390862050,1760181063255,-500.0,0.00027046,9]
[390862051,1760181063264,-661.19,0.00027046,9]
[390862052,1760181063274,-2335.06,0.00027046,9]
[390862053,1760181063283,-500.0,0.00027046,9]
[390862054,1760181063291,-26177.3385272,0.00027047,2]
[390862055,1760181063301,-168.0,0.0002705,2]
[390862056,1760181063310,-1201.13,0.00027122,9]
[390862057,1760181063320,-500.0,0.00027122,9]
[390862058,1760181063329,-541.58,0.00027122,9]
[390862059,1760181063338,-1332.62,0.00027122,9]
[390862060,1760181063347,-2990.79,0.00027122,9]
[390862061,1760181063357,-500.0,0.00027122,9]
[390862062,1760181063366,-661.19,0.00027122,9]
[390862063,1760181063375,-2335.06,0.00027122,9]
[390862064,1760181063385,-500.0,0.00027122,9]
[390862065,1760181063394,-500.0,0.00027123,5]
[390862066,1760181063403,-2609.37557469,0.00027123,10]
[390862067,1760181063411,-1000.0,0.00027123,10]
[390862068,1760181063421,-1000.0,0.00027123,10]
[390862069,1760181063430,-1000.0,0.00027123,10]
[390862070,1760181063439,-1000.0,0.00027123,10]
[390862071,1760181063448,-1000.0,0.00027123,10]
[390862072,1760181063458,-1000.0,0.00027123,10]
[390862073,1760181063467,-1000.0,0.00027123,10]
[390862074,1760181063477,-1000.0,0.00027123,10]
[390862075,1760181063486,-1000.0,0.00027123,10]
[390862076,1760181063495,-1000.0,0.00027123,10]
[390862077,1760181063503,-1000.0,0.00027123,10]
[390862078,1760181063513,-1000.0,0.00027123,10]
[390862079,1760181063526,-1000.0,0.00027123,10]
[390862080,1760181063536,-1000.0,0.00027123,10]
[390862081,1760181063546,-370.53442593,0.00027123,10]
[390862082,1760181063556,-11604.29,0.00027123,4]
[390862083,1760181063566,-168.0,0.00027171,2]
[390862084,1760181063577,-168.0,0.00027221,2]
[390862085,1760181063587,-959.91776811,0.00027235,2]
[390862086,1760181063599,-154.06,0.00027275,7]
[390862087,1760181063700,-255.80682142,0.00027292,2]
[390862088,1760181063721,-503.16002764,0.00027292,2]
[390862089,1760181063732,-1000.0,0.00027295,2]
[390862090,1760181063741,-342.0,0.000273,7]
[390862091,1760181063751,-3000.0,0.000273,2]
[390862092,1760181063761,-200.43040235,0.00027308,2]
[390862093,1760181063771,-500.54225061,0.00027308,2]
[390862094,1760181063780,-500.1912246,0.00027308,2]
[390862095,1760181063790,-248.44886256,0.00027308,2]